[Event "Gibraltar Challengers B 2020"]
[Site "Caleta"]
[Date "2020.01.27"]
[Round "4.39"]
[White "Aura, Kristian"]
[Black "Fernandez Lopategi, Jon Andoni"]
[Result "1/2-1/2"]
[ECO "D13"]
[WhiteElo "1928"]
[BlackElo "1987"]
[Annotator "NA"]
[PlyCount "81"]
[EventDate "2020.01.20"]
[EventType "swiss"]
[EventCountry "GGB"]
[SourceTitle "playchess.com"]
[Source "ChessBase"]
[SourceQuality "1"]
[TimeControl "6600+10"]

1. d4 {[%emt 0:00:00]} d5 {[%emt 0:00:04]} 2. Nf3 {[%emt 0:00:00]} Nf6 {[%emt 0:00:15]} 3. c4 {[%emt 0:00:04]} c6 {[%emt 0:00:09]} 4. Nc3 {[%emt 0:00:12]} a6 {[%emt 0:00:12]} 5. cxd5 {[%emt 0:01:43]} cxd5 {[%emt 0:00:16]} 6. Bf4 {[%emt 0:00:21]} Nc6 {[%emt 0:00:34]} 7. e3 {[%emt 0:00:20]} Bg4 {[%emt 0:01:54]} 8. Be2 {[%emt 0:00:42]} e6 {[%emt 0:01:05]} 9. O-O {[%emt 0:00:13]} Be7 {[%emt 0:05:30]} 10. Rc1 {[%emt 0:00:27] D13: Slav Defence: Exchange variation without ...Bf5} Rc8 {[%emt 0:03:16]} (10... Nd7 11. h3 Bh5 12. Qb3 Qb6 13. Nd2 Bxe2 14. Nxe2 Qxb3 15. Nxb3 f6 16. a3 Kf7 17. Rc2 Nb6 {0-1 (56) Melkumyan,H (2633)-Carlsen,M (2837) Riadh 2017}) 11. h3 {[%emt 0:02:54]} Bh5 {[%emt 0:00:32]} 12. Ne5 {[%emt 0:04:03]} Bxe2 {[%emt 0:01:38]} 13. Qxe2 {[%emt 0:01:08]} O-O {[%emt 0:00:25]} 14. Nxc6 {[%emt 0:14:22]} Rxc6 {[%emt 0:00:23]} 15. Rc2 {[%emt 0:00:15]} Qa5 {[%emt 0:04:19]} 16. Rfc1 {[%emt 0:01:25]} Rfc8 {[%emt 0:02:46]} 17. Qd3 {[%emt 0:11:46]} Bb4 $146 {[%emt 0:15:12]} ({Predecessor:} 17... Nd7 18. a3 Qd8 19. Na4 {0-1 (66) Mukhi Talreja,I (1510)-Arteaga Medina,R (1455) Cotelec 2012}) 18. f3 {[%emt 0:03:06]} Bxc3 {[%emt 0:18:53]} 19. bxc3 {[%emt 0:00:41]} Rc4 {[%emt 0:02:24]} 20. e4 {[%emt 0:01:37]} b5 {[%emt 0:07:13]} 21. Bd6 {[%emt 0:03:44]} Qb6 {[%emt 0:06:00]} 22. e5 {[%emt 0:10:05]} Ne8 {[%emt 0:02:05]} 23. Bc5 {[%emt 0:00:32]} Qd8 {[%emt 0:00:42]} 24. f4 {[%emt 0:03:27]} g6 {[%emt 0:02:26]} 25. Kh2 {[%emt 0:06:03]} Ng7 {[%emt 0:05:56]} 26. g4 {[%emt 0:01:42]} h5 {[%emt 0:01:14]} 27. Qf3 {[%emt 0:00:50]} Qh4 {[%emt 0:15:12]} 28. Kg2 {[%emt 0:00:59]} f5 {[%emt 0:01:00]} 29. exf6 {[%emt 0:00:49]} Qxf6 {[%emt 0:00:11]} 30. Re1 $17 {[%emt 0:02:51]} (30. Kg1 $11) 30... hxg4 {[%emt 0:02:12]} 31. hxg4 {[%emt 0:00:14]} R8xc5 {[%emt 0:00:16]} 32. dxc5 {[%emt 0:00:29]} Rxf4 {[%emt 0:00:07]} 33. Qg3 {[%emt 0:16:07]} Qg5 {[%emt 0:00:33]} 34. Kh3 {[%emt 0:00:11]} Qh6+ {[%emt 0:03:31]} 35. Kg2 {[%emt 0:00:12]} Qg5 {[%emt 0:00:07]} 36. Kh3 {[%emt 0:00:10]} Qh6+ {[%emt 0:00:59]} 37. Kg2 {[%emt 0:00:02]} Qg5 {[%emt 0:00:36]} 38. Kh3 {[%emt 0:00:10]} Nh5 {[%emt 0:00:10]} 39. gxh5 {[%emt 0:00:11]} Qxh5+ {[%emt 0:00:03]} 40. Kg2 {[%emt 0:00:03]} Rg4 {[%emt 0:00:02]} 41. Rce2 {[%emt 0:01:28]} 1/2-1/2

[Event "Gibraltar Challengers B 2020"]
[Site "Caleta"]
[Date "2020.01.27"]
[Round "4.40"]
[White "Kaplan, Amiram"]
[Black "Nergard, Ole-Kristian"]
[Result "1-0"]
[ECO "B14"]
[WhiteElo "1880"]
[BlackElo "1667"]
[Annotator "NA"]
[PlyCount "57"]
[EventDate "2020.01.20"]
[EventType "swiss"]
[EventCountry "GGB"]
[SourceTitle "playchess.com"]
[Source "ChessBase"]
[SourceQuality "1"]
[TimeControl "6600+10"]

1. Nf3 {[%emt 0:00:03]} Nf6 {[%emt 0:06:42]} 2. c4 {[%emt 0:00:25]} c5 {[%emt 0:00:23]} 3. e3 {[%emt 0:00:38]} g6 {[%emt 0:00:55]} 4. d4 {[%emt 0:00:37]} cxd4 {[%emt 0:00:07]} 5. exd4 {[%emt 0:00:30]} d5 {[%emt 0:00:59]} 6. Nc3 {[%emt 0:01:11]} Bg7 {[%emt 0:00:27]} 7. h3 {[%emt 0:04:58]} O-O {[%emt 0:01:41]} 8. Be3 {[%emt 0:00:32] B14: Caro-Kann: Panov-Botvinnik Attack with 5...e6 and 5...g6} (8. c5 Nc6 9. Be2 b6 10. cxb6 axb6 11. O-O Ne4 12. Be3 Nxc3 13. bxc3 Ba6 14. Nd2 Na5 15. Rb1 Qc7 16. Bxa6 Rxa6 {1-0 (65) Yanchenko,R (2463)-Narayanan,S (2529) Moscow 2019}) 8... Nc6 {[%emt 0:00:53]} 9. a3 {[%emt 0:09:14]} Re8 {[%emt 0:01:58]} 10. b4 $146 {[%emt 0:01:55]} ({Predecessor:} 10. Bd3 e5 11. cxd5 exd4 12. dxc6 dxe3 13. O-O exf2+ 14. Rxf2 bxc6 15. Qc2 Bh6 {½-½ (38) Acunzo,D (1769)-Gulinelli,E (1658) Courmayeur 2011}) 10... e5 {[%emt 0:02:58]} 11. Be2 {[%emt 0:20:05] [#]} (11. Nxe5 $17 Nxe5 12. dxe5) 11... exd4 $1 {[%emt 0:12:35]} 12. Nxd4 {[%emt 0:03:22] [#]} Nxd4 {[%emt 0:04:29]} (12... Nh5 $1 $19 {[%mdl 512]} 13. Nxd5 (13. Bxh5 Bxd4) 13... Rxe3 14. fxe3 Qh4+ 15. g3 Nxg3) 13. Bxd4 {[%emt 0:00:27]} dxc4 {[%emt 0:00:31]} 14. O-O {[%emt 0:01:39]} Be6 {[%emt 0:00:56]} 15. Bf3 {[%emt 0:00:45]} Qc8 {[%emt 0:08:38]} (15... Re7 $17 16. Ra2 Rd7) 16. Qc2 {[%emt 0:09:09]} Bf5 {[%emt 0:03:27]} 17. Qb2 {[%emt 0:02:08]} Nh5 {[%emt 0:10:03]} 18. Be3 {[%emt 0:03:18]} Bd3 {[%emt 0:01:25]} 19. Rfd1 {[%emt 0:00:53]} Ng3 {[%emt 0:06:07]} 20. Qc1 {[%emt 0:14:20]} Nf5 {[%emt 0:01:51]} 21. Bc5 {[%emt 0:10:26]} Nh4 {[%emt 0:03:26]} 22. Bd5 {[%emt 0:03:55]} Qd7 {[%emt 0:02:02]} 23. Bxc4 {[%emt 0:01:12]} Nf3+ {[%emt 0:08:15]} 24. gxf3 {[%emt 0:01:03]} Qxh3 {[%emt 0:00:39]} 25. Rxd3 {[%emt 0:01:06]} Re5 {[%emt 0:00:36]} 26. f4 {[%emt 0:01:02]} Qh4 {[%emt 0:04:02]} 27. fxe5 {[%emt 0:05:29]} Bxe5 {[%emt 0:01:59]} 28. Bd5 {[%emt 0:05:55]} Qg4+ {[%emt 0:02:42]} 29. Bg2 $18 {[%emt 0:00:33]} 1-0

[Event "Gibraltar Challengers B 2020"]
[Site "Caleta"]
[Date "2020.01.27"]
[Round "4.41"]
[White "Olufemi, George"]
[Black "Johnsen, Sylvia"]
[Result "1-0"]
[ECO "C56"]
[WhiteElo "1803"]
[BlackElo "1902"]
[Annotator "NA"]
[PlyCount "46"]
[EventDate "2020.01.20"]
[EventType "swiss"]
[EventCountry "GGB"]
[SourceTitle "playchess.com"]
[Source "ChessBase"]
[SourceQuality "1"]
[TimeControl "6600+10"]

1. e4 {[%emt 0:00:42]} e5 {[%emt 0:00:03]} 2. Nf3 {[%emt 0:00:11]} Nc6 {[%emt 0:00:03]} 3. d4 {[%emt 0:00:08]} (3. Bc4 Nf6 4. d4 exd4 5. O-O {½-½ (11) Smerdon,D (2461)-Kravtsiv,M (2492) Pardubice 2007}) 3... exd4 {[%emt 0:00:23]} 4. Bc4 {[%emt 0:00:10]} Bc5 {[%emt 0:02:53]} 5. O-O {[%emt 0:01:04]} Nf6 {[%emt 0:01:52]} (5... d6 $15) 6. e5 {[%emt 0:00:41]} d5 {[%emt 0:00:47]} 7. exf6 {[%emt 0:02:24]} dxc4 {[%emt 0:00:10]} 8. Re1+ {[%emt 0:00:35]} Be6 {[%emt 0:00:27]} 9. Ng5 {[%emt 0:00:56]} Qd5 {[%emt 0:01:45]} 10. Nc3 {[%emt 0:04:06]} Qf5 {[%emt 0:00:42]} 11. Nce4 {[%emt 0:06:13]} Bf8 {[%emt 0:14:44] [#] C56: Two Knights: 4 d4 exd4 5 0-0 Nxe4} 12. g4 {[%emt 0:07:58]} (12. Nxf7 $1 $11 {[%mdl 512]} Kxf7 (12... Bxf7 13. Nd6+) 13. Ng5+ {[%mdl 64] Double Attack, Discovered Attack} Kg8 14. g4) 12... Qd5 $2 {[%emt 0:10:28] [#]} (12... Qxg4+ $15 13. Qxg4 Bxg4) 13. Nxf7 $1 $146 {[%emt 0:32:05]} ({Predecessor:} 13. f4 h6 14. f5 hxg5 15. fxe6 fxe6 16. f7+ Kxf7 17. Nxg5+ Kg8 18. Nxe6 Bd6 19. Bf4 Ne5 20. Ng5 Rf8 21. Rf1 d3 22. Bxe5 Bc5+ {0-1 (22) Indriunas,M (1876)-Drozdov,S (2186) Lithuania 2018}) 13... Kxf7 {[%emt 0:04:36]} 14. Ng5+ {[%emt 0:00:37] Double Attack} Kg6 {[%emt 0:30:49]} 15. Nxe6 {[%emt 0:04:35]} Bd6 {[%emt 0:02:12]} 16. fxg7 {[%emt 0:17:05]} Rhg8 {[%emt 0:05:50]} 17. Qd2 {[%emt 0:02:08]} Be5 {[%emt 0:14:15]} 18. Qg5+ {[%emt 0:09:31]} Kf7 {[%emt 0:00:09]} 19. Qf5+ {[%emt 0:00:10]} Ke7 {[%emt 0:02:41]} 20. Nxc7 $18 {[%emt 0:04:48] Double Attack} Qa5 {[%emt 0:03:52]} 21. Qe6+ {[%emt 0:06:35]} Kd8 {[%emt 0:00:43]} 22. Qxg8+ {[%emt 0:00:58]} Kxc7 {[%emt 0:00:20]} 23. Qf7+ {[%emt 0:00:08]} Kb6 {[%emt 0:00:45]} 1-0

[Event "Gibraltar Challengers B 2020"]
[Site "Caleta"]
[Date "2020.01.27"]
[Round "4.42"]
[White "Lafour, Jephte"]
[Black "Auvinen, Esa"]
[Result "1/2-1/2"]
[ECO "D02"]
[WhiteElo "1690"]
[BlackElo "1850"]
[Annotator "NA"]
[PlyCount "117"]
[EventDate "2020.01.20"]
[EventType "swiss"]
[EventCountry "GGB"]
[SourceTitle "playchess.com"]
[Source "ChessBase"]
[SourceQuality "1"]
[TimeControl "6600+10"]

1. Nf3 {[%emt 0:04:28]} d5 {[%emt 0:00:01]} 2. g3 {[%emt 0:00:37]} Nd7 {[%emt 0:01:03]} 3. d4 {[%emt 0:01:59]} e6 {[%emt 0:00:09]} 4. Bg2 {[%emt 0:00:07]} Ngf6 {[%emt 0:00:07]} 5. O-O {[%emt 0:00:07]} c5 {[%emt 0:00:33]} 6. c3 {[%emt 0:04:38] D02: 1 d4 d5 2 Nf3 sidelines, including 2...Nf6 3 g3 and 2...Nf6 3 Bf4} (6. c4 dxc4 7. Na3 Nb6 8. Nxc4 Nxc4 9. Qa4+ Bd7 10. Qxc4 Rc8 11. Ne5 b5 12. Qd3 c4 13. Qc2 Be7 14. a4 a6 15. Bb7 Qb6 16. Bxc8 Bxc8 17. axb5 axb5 18. b3 c3 19. Qxc3 O-O 20. Qa5 Bd8 21. Qxb6 Bxb6 22. Ba3 Re8 23. Bc5 Bc7 24. Ra8 Nd5 25. Rc1 {1-0 (25) Atalik,E (2464)-Hoolt,S (2323) Batumi 2019}) 6... b6 {[%emt 0:00:20]} 7. Re1 {[%emt 0:00:47]} Bb7 {[%emt 0:00:10]} 8. Bf4 {[%emt 0:03:44]} Be7 {[%emt 0:00:49]} 9. Nbd2 {[%emt 0:01:50]} O-O {[%emt 0:02:52]} 10. e4 $146 {[%emt 0:02:30]} ({Predecessor:} 10. Bg5 h6 11. Bxf6 Bxf6 12. e4 Re8 13. e5 Be7 14. h4 c4 15. g4 Bxh4 16. Nxh4 Qxh4 17. f3 {0-1 (44) Ciontea,A (1058)-Margau,B (1241) Baile Felix 2017}) 10... dxe4 {[%emt 0:02:57]} 11. Ng5 {[%emt 0:00:13]} cxd4 {[%emt 0:00:58]} 12. cxd4 {[%emt 0:00:58]} Nd5 {[%emt 0:03:46]} 13. Ngxe4 {[%emt 0:15:24]} Nxf4 {[%emt 0:01:08]} 14. gxf4 {[%emt 0:00:18]} Bd5 {[%emt 0:00:59]} 15. Qh5 {[%emt 0:02:50]} Nf6 {[%emt 0:10:33]} 16. Nxf6+ {[%emt 0:07:14]} Bxf6 {[%emt 0:00:02]} 17. Bxd5 {[%emt 0:00:19] [#]} g6 $1 {[%emt 0:02:01]} ({But not} 17... exd5 18. Nf3 $15) ({Reject} 17... Qxd5 $6 18. Qxd5 exd5 19. Nf3 $11) 18. Qf3 {[%emt 0:00:53]} exd5 {[%emt 0:00:37]} 19. Nb3 {[%emt 0:00:25]} Qd7 {[%emt 0:00:44]} 20. f5 {[%emt 0:02:15]} Qxf5 {[%emt 0:00:53]} 21. Qxf5 {[%emt 0:00:15]} gxf5 {[%emt 0:00:05]} 22. Rac1 {[%emt 0:00:21]} Rac8 {[%emt 0:01:05]} 23. Kf1 {[%emt 0:02:15]} Rc4 {[%emt 0:03:02]} 24. Rcd1 {[%emt 0:00:08]} Rc2 {[%emt 0:02:24]} 25. Re2 {[%emt 0:00:14]} Rfc8 {[%emt 0:01:54]} 26. Rdd2 {[%emt 0:03:25]} R2c4 {[%emt 0:00:21]} 27. f4 {[%emt 0:00:49]} a5 {[%emt 0:01:05]} 28. Rg2+ {[%emt 0:02:43]} Kf8 {[%emt 0:00:43]} 29. Rd3 {[%emt 0:01:52]} a4 {[%emt 0:00:57]} 30. Nd2 {[%emt 0:00:06]} Rxd4 {[%emt 0:01:00]} 31. Rxd4 {[%emt 0:01:10]} Bxd4 {[%emt 0:00:09]} 32. Nf3 {[%emt 0:00:44]} Rc1+ {[%emt 0:03:06]} 33. Ne1 {[%emt 0:00:09]} Be3 {[%emt 0:01:51]} 34. Ke2 {[%emt 0:02:19]} Bxf4 {[%emt 0:01:20]} 35. Rf2 {[%emt 0:00:15]} Be5 {[%emt 0:02:49]} 36. Rxf5 {[%emt 0:00:59]} Bxh2 {[%emt 0:06:08]} 37. Rxd5 {[%emt 0:01:07]} Bg3 {[%emt 0:00:30]} 38. Nd3 {[%emt 0:01:17]} Rc6 {[%emt 0:04:55]} 39. Kf3 {[%emt 0:04:53]} Bc7 {[%emt 0:00:26]} 40. Ke4 {[%emt 0:04:40]} Re6+ {[%emt 0:02:04]} 41. Kf5 {[%emt 0:00:20]} Rd6 {[%emt 0:00:26]} 42. Nf4 {[%emt 0:01:09]} Rxd5+ {[%emt 0:01:49]} 43. Nxd5 {[%emt 0:00:02]} Bd8 {[%emt 0:00:36]} 44. Nc3 {[%emt 0:00:24]} h5 {[%emt 0:01:40]} 45. Nxa4 {[%emt 0:01:11]} Kg7 {[%emt 0:00:00]} 46. Nc3 {[%emt 0:10:08]} h4 {[%emt 0:00:48]} 47. Kg4 {[%emt 0:02:26]} Kg6 {[%emt 0:00:35]} 48. Nd5 {[%emt 0:00:47]} f5+ {[%emt 0:01:40]} 49. Kh3 {[%emt 0:02:06]} Kg5 {[%emt 0:05:41]} 50. Ne3 {[%emt 0:01:04]} f4 {[%emt 0:02:04]} 51. Ng4 {[%emt 0:01:36]} f3 {[%emt 0:00:01]} 52. b4 {[%emt 0:03:10]} Kf4 {[%emt 0:00:47]} 53. a4 {[%emt 0:00:30]} Ke4 {[%emt 0:02:31]} 54. a5 $19 {[%emt 0:01:01]} bxa5 {[%emt 0:01:09]} 55. bxa5 {[%emt 0:00:02]} Kd5 {[%emt 0:02:29]} 56. a6 {[%emt 0:00:06]} Kc6 {[%emt 0:00:36]} 57. Ne5+ {[%emt 0:00:20]} Kb6 {[%emt 0:00:18]} 58. Nxf3 {[%emt 0:00:08]} Kxa6 {[%emt 0:00:04]} 59. Nxh4 {[%emt 0:00:11]} 1/2-1/2

[Event "Gibraltar Challengers B 2020"]
[Site "Caleta"]
[Date "2020.01.27"]
[Round "4.43"]
[White "Garcia-Blazquez Perez, Manuel"]
[Black "Tkadlecek, Petr"]
[Result "1-0"]
[ECO "B09"]
[WhiteElo "1825"]
[BlackElo "1775"]
[Annotator "NA"]
[PlyCount "103"]
[EventDate "2020.01.20"]
[EventType "swiss"]
[EventCountry "GGB"]
[SourceTitle "playchess.com"]
[Source "ChessBase"]
[SourceQuality "1"]
[TimeControl "6600+10"]

1. e4 {[%emt 0:00:00]} c6 {[%emt 0:00:30]} 2. d4 {[%emt 0:00:00]} g6 {[%emt 0:00:25]} 3. Nc3 {[%emt 0:00:17]} Bg7 {[%emt 0:00:11]} 4. f4 {[%emt 0:00:09]} d6 {[%emt 0:00:26]} 5. Nf3 {[%emt 0:00:06]} Nf6 {[%emt 0:01:37]} 6. e5 {[%emt 0:00:37]} dxe5 {[%emt 0:01:25]} 7. fxe5 {[%emt 0:00:14]} Nd5 {[%emt 0:00:25]} 8. Bc4 {[%emt 0:00:55]} O-O {[%emt 0:01:32]} 9. O-O {[%emt 0:00:14]} Nxc3 {[%emt 0:02:15]} 10. bxc3 {[%emt 0:00:11]} b5 {[%emt 0:00:30] B09: Pirc Defence: Austrian Attack} (10... Bg4 11. h3 b5 12. Bb3 Be6 13. Bxe6 fxe6 14. Ng5 Rxf1+ 15. Qxf1 Qf8 16. Qxf8+ Bxf8 17. a4 Nd7 18. Nxe6 bxa4 19. Rxa4 {1-0 (48) Obad,A (2321)-Habibovic,H (1854) Lukavac 2019}) 11. Bb3 {[%emt 0:01:53]} a5 {[%emt 0:00:53]} 12. a4 {[%emt 0:00:06]} Ba6 {[%emt 0:02:12]} 13. Ng5 {[%emt 0:09:34]} e6 {[%emt 0:02:31]} 14. Rf3 $146 {[%emt 0:00:50]} ({Predecessor:} 14. axb5 Bxb5 15. c4 Ba6 16. Ba3 Qxg5 17. Bxf8 Bxf8 18. Qe2 {½-½ (31) Tropf,P (1920)-Weissenfels,G (1476) GER email 2010}) 14... Qe7 {[%emt 0:05:13]} 15. axb5 {[%emt 0:03:42]} Bb7 {[%emt 0:02:38]} 16. bxc6 {[%emt 0:04:41]} Bxc6 {[%emt 0:02:43]} (16... Nxc6 $16 {was worth a try.} 17. Rh3 h6) 17. Rh3 {[%emt 0:00:10]} a4 {[%emt 0:06:37]} 18. Bc4 {[%emt 0:07:04]} ({Stronger than} 18. Nxh7 axb3 19. Rxa8 Bxa8 $11) 18... Qb7 $2 {[%emt 0:08:16]} (18... h6 19. Nf3 a3 20. Bxh6 Bxh6) 19. Rxh7 {[%emt 0:17:46]} Bxg2 {[%emt 0:05:25]} 20. Ba3 {[%emt 0:03:48]} Rd8 {[%emt 0:07:51]} 21. Qg4 {[%emt 0:00:16]} Bh1 {[%emt 0:06:36]} 22. Qh3 {[%emt 0:00:11]} Qg2+ {[%emt 0:01:52]} 23. Qxg2 {[%emt 0:00:05]} Bxg2 {[%emt 0:00:04]} 24. Kxg2 {[%emt 0:00:07]} Rc8 {[%emt 0:02:02]} 25. Rf1 {[%emt 0:07:00]} Ra7 {[%emt 0:01:50]} 26. Bc5 {[%emt 0:03:20]} Rb7 {[%emt 0:11:07]} 27. h4 {[%emt 0:04:41]} Rcc7 {[%emt 0:02:23]} 28. h5 {[%emt 0:06:02]} gxh5 {[%emt 0:02:13]} 29. Bd3 {[%emt 0:08:54]} Bxe5 {[%emt 0:03:12]} 30. Rxh5 {[%emt 0:00:29]} Rxc5 {[%emt 0:07:32]} 31. dxc5 {[%emt 0:00:08]} Bxc3 {[%emt 0:01:17]} 32. Rf3 {[%emt 0:01:34]} Bb2 {[%emt 0:01:34]} 33. Be4 {[%emt 0:04:41]} Rc7 {[%emt 0:02:22]} 34. Rg3 {[%emt 0:07:09]} Kf8 {[%emt 0:02:13]} 35. Rf3 {[%emt 0:03:33]} Ke8 {[%emt 0:02:05]} 36. c3 {[%emt 0:00:29]} Nd7 {[%emt 0:06:24]} 37. Rh8+ {[%emt 0:00:07]} Nf8 {[%emt 0:00:37]} 38. Nxe6 {[%emt 0:01:00]} Re7 {[%emt 0:04:05]} 39. Bc6+ {[%emt 0:00:11]} Rd7 {[%emt 0:00:25]} 40. Nxf8 {[%emt 0:01:10]} a3 {[%emt 0:00:52]} 41. Re3+ {[%emt 0:00:36]} Kd8 {[%emt 0:00:21]} 42. Ne6+ {[%emt 0:00:16]} Ke7 {[%emt 0:00:10]} 43. Nd4+ {[%emt 0:02:13]} (43. Nf4+ $142 Kf6 44. Bxd7 Bc1 45. Nd5+ Kg7 46. Ree8 f5 47. Bxf5 Bh6 48. Rh7#) 43... Kf6 {[%emt 0:00:19]} 44. Bxd7 {[%emt 0:00:23]} a2 {[%emt 0:00:22]} 45. Nb3 {[%emt 0:02:11]} a1=Q {[%emt 0:00:18]} 46. Nxa1 {[%emt 0:00:20]} Bxa1 {[%emt 0:00:00]} 47. c6 {[%emt 0:00:14]} Kg5 {[%emt 0:00:21]} 48. c7 {[%emt 0:00:05]} Kf4 {[%emt 0:00:05]} 49. Kf2 {[%emt 0:00:16]} f5 {[%emt 0:00:26]} 50. c8=Q {[%emt 0:00:11]} Bb2 {[%emt 0:00:13]} 51. Rg8 {[%emt 0:00:29]} Bxc3 {[%emt 0:00:38]} 52. Qc4+ {[%emt 0:00:18]} 1-0

[Event "Gibraltar Challengers B 2020"]
[Site "Caleta"]
[Date "2020.01.29"]
[Round "5.1"]
[White "Royset, Pal"]
[Black "Yanev, Pavel"]
[Result "0-1"]
[ECO "D02"]
[WhiteElo "2151"]
[BlackElo "2200"]
[Annotator "ChessBase"]
[PlyCount "128"]
[EventDate "2020.01.20"]
[EventType "swiss"]
[EventCountry "GGB"]
[SourceTitle "playchess.com"]
[Source "ChessBase"]
[SourceQuality "1"]
[TimeControl "6600+10"]

1. d4 {[%emt 0:00:34]} Nf6 {[%emt 0:00:24]} 2. Bf4 {[%emt 0:00:46]} c5 {[%emt 0:01:23]} 3. e3 {[%emt 0:03:44]} d5 {[%emt 0:01:06]} 4. c3 {[%emt 0:00:21]} Nc6 {[%emt 0:01:05]} 5. Nd2 {[%emt 0:02:28]} Bg4 {[%emt 0:02:19]} 6. Ngf3 {[%emt 0:03:09]} e6 {[%emt 0:01:43]} 7. h3 {[%emt 0:05:53]} Bxf3 {[%emt 0:01:23]} 8. Nxf3 {[%emt 0:00:32]} Bd6 {[%emt 0:00:39]} 9. Bxd6 {[%emt 0:13:20]} Qxd6 {[%emt 0:01:22]} 10. Bb5 {[%emt 0:03:23]} O-O {[%emt 0:03:50]} 11. O-O {[%emt 0:02:05]} a6 {[%emt 0:00:47]} 12. Bxc6 {[%emt 0:03:26]} Qxc6 {[%emt 0:00:27]} 13. Ne5 {[%emt 0:05:24]} Qc7 {[%emt 0:02:45]} 14. Qc2 {[%emt 0:04:17]} b5 {[%emt 0:05:08]} 15. Nd3 {[%emt 0:04:32]} Nd7 {[%emt 0:02:27]} 16. a4 {[%emt 0:05:35]} c4 {[%emt 0:06:14]} 17. Nf4 {[%emt 0:01:03]} b4 {[%emt 0:05:06]} 18. cxb4 {[%emt 0:01:44]} Rab8 {[%emt 0:04:53]} 19. Nd3 {[%emt 0:07:47]} Qd6 {[%emt 0:03:47]} 20. Nc5 {[%emt 0:04:49]} Rxb4 {[%emt 0:00:53]} 21. Nxd7 {[%emt 0:01:58]} Qxd7 {[%emt 0:00:32]} 22. Rfe1 {[%emt 0:02:44]} Rfb8 {[%emt 0:07:07]} 23. Ra2 {[%emt 0:00:12]} Qb7 {[%emt 0:04:33]} 24. Re2 {[%emt 0:00:13]} g6 {[%emt 0:01:56]} 25. h4 {[%emt 0:01:52]} Qe7 {[%emt 0:02:30]} 26. g3 {[%emt 0:00:08]} Qf6 {[%emt 0:00:41]} 27. Kg2 {[%emt 0:00:28]} Rb3 {[%emt 0:00:40]} 28. Rd2 {[%emt 0:01:29]} h5 {[%emt 0:02:55]} 29. Rd1 {[%emt 0:00:51]} Kf8 {[%emt 0:01:25]} 30. Rd2 {[%emt 0:02:14]} Ke7 {[%emt 0:00:59]} 31. Rd1 {[%emt 0:02:06]} R8b4 {[%emt 0:02:55]} 32. Rd2 {[%emt 0:01:36]} Kd7 {[%emt 0:02:39]} 33. Rd1 {[%emt 0:01:35]} Qf5 {[%emt 0:01:21]} 34. Qxf5 {[%emt 0:02:09]} gxf5 {[%emt 0:00:18]} 35. Rd2 {[%emt 0:00:13]} Kc6 {[%emt 0:00:36]} 36. Kf3 {[%emt 0:00:47]} Kb6 {[%emt 0:00:21]} 37. Kf4 {[%emt 0:01:47]} f6 {[%emt 0:02:42]} 38. a5+ {[%emt 0:01:31]} Kb5 {[%emt 0:00:43]} 39. f3 {[%emt 0:00:19]} Ra4 {[%emt 0:01:06]} 40. Rxa4 {[%emt 0:00:46]} Kxa4 {[%emt 0:00:14]} 41. Re2 {[%emt 0:04:05]} Kxa5 {[%emt 0:02:51]} 42. g4 {[%emt 0:00:07]} fxg4 {[%emt 0:01:08]} 43. fxg4 {[%emt 0:00:06]} hxg4 {[%emt 0:00:15]} 44. Kxg4 {[%emt 0:00:09]} Rb8 {[%emt 0:00:30]} 45. h5 {[%emt 0:00:49]} Rh8 {[%emt 0:14:13]} 46. Rh2 {[%emt 0:02:05]} Rh6 {[%emt 0:00:27]} 47. Kf4 {[%emt 0:02:16]} Kb4 {[%emt 0:05:18]} 48. e4 {[%emt 0:00:16]} c3 {[%emt 0:02:47]} 49. bxc3+ {[%emt 0:02:24]} Kxc3 {[%emt 0:00:18]} 50. exd5 {[%emt 0:00:49]} exd5 {[%emt 0:00:14]} 51. Ke3 {[%emt 0:01:40]} a5 {[%emt 0:01:40]} 52. Rh1 {[%emt 0:00:03]} Kb2 {[%emt 0:00:53]} 53. Rf1 {[%emt 0:02:09]} Rxh5 {[%emt 0:00:48]} 54. Rxf6 {[%emt 0:00:03]} Rh3+ {[%emt 0:00:33]} 55. Kf4 {[%emt 0:00:34]} a4 {[%emt 0:01:28]} 56. Ke5 {[%emt 0:00:32]} Rh5+ {[%emt 0:00:13]} 57. Kd6 {[%emt 0:00:02]} a3 {[%emt 0:00:11]} 58. Rf2+ {[%emt 0:00:14]} Kb3 {[%emt 0:00:23]} 59. Kc5 {[%emt 0:00:32]} a2 {[%emt 0:00:19]} 60. Rf3+ {[%emt 0:00:10]} Ka4 {[%emt 0:00:14]} 61. Rf8 {[%emt 0:00:08]} Rh1 {[%emt 0:01:13]} 62. Kxd5 {[%emt 0:00:37]} a1=Q {[%emt 0:00:12]} 63. Ra8+ {[%emt 0:00:04]} Kb5 {[%emt 0:00:04]} 64. Rxa1 {[%emt 0:00:13]} Rxa1 {[%emt 0:00:04]} 0-1